{"text_format":"3","workbook":"xlsx","n_sheets":7,"sheets":["Понеділок","Вівторок","Середа","Четвер","П’ятниця","Субота","Неділя"],"not_rendered":{"defined_names":21},"read":"whole","date_system":"1900"}

{"sheet":"Понеділок","index":0,"n_rows":10,"n_cols":13,"rows_kept":10,"merged":[[0,1,0,4],[1,2,1,4],[2,2,2,4]]}
[null,"Графік змін"]
[null,"На тиждень: ","Дата"]
[null,"Назва відділу: ","Ім’я"]
[]
[null,"ПОНЕДІЛОК","7:00:00","8:00:00","9:00:00","10:00:00","11:00:00","12:00:00","13:00:00","14:00:00","15:00:00","Лікарняний?","УСЬОГО"]
[null,"Ім’я 1","керівник","керівник","керівник","керівник","керівник","керівник","керівник","керівник","керівник",null,{"$f":"COUNTIF(Понеділок[[#This Row],[7:00:00]:[15:00:00]],\"*\")","v":9}]
[null,"Ім’я 2",null,"касир","касир","касир","касир",{"$nulls":5},{"$f":"COUNTIF(Понеділок[[#This Row],[7:00:00]:[15:00:00]],\"*\")","v":4}]
[null,"Ім’я 3",null,"адміністратор","адміністратор","адміністратор","адміністратор ","адміністратор","адміністратор","адміністратор",null,null,{"$f":"COUNTIF(Понеділок[[#This Row],[7:00:00]:[15:00:00]],\"*\")","v":7}]
[null,"Ім’я 4",null,"адміністратор","адміністратор","адміністратор","адміністратор ","адміністратор","адміністратор","адміністратор",null,null,{"$f":"COUNTIF(Понеділок[[#This Row],[7:00:00]:[15:00:00]],\"*\")","v":7}]
[null,"Ім’я 5",{"$nulls":9},"Лікарняне",{"$f":"COUNTIF(Понеділок[[#This Row],[7:00:00]:[15:00:00]],\"*\")","v":0}]

{"sheet":"Вівторок","index":1,"n_rows":10,"n_cols":13,"rows_kept":10,"merged":[[0,1,0,4],[1,2,1,4],[2,2,2,4]]}
[null,"Графік змін"]
[null,"На тиждень: ",{"$f":"Понеділок!C2","v":"Дата"}]
[null,"Назва відділу: ",{"$f":"Понеділок!C3","v":"Ім’я"}]
[]
[null,"ВІВТОРОК","7:00:00","8:00:00","9:00:00","10:00:00","11:00:00","12:00:00","13:00:00","14:00:00","15:00:00","Лікарняний?","УСЬОГО"]
[null,"Ім’я 1","керівник","керівник","керівник","керівник","керівник","керівник","керівник","керівник","керівник",null,{"$f":"COUNTIF(Вівторок[[#This Row],[7:00:00]:[15:00:00]],\"*\")","v":9}]
[null,"Ім’я 2",null,"касир","касир","касир","касир",{"$nulls":5},{"$f":"COUNTIF(Вівторок[[#This Row],[7:00:00]:[15:00:00]],\"*\")","v":4}]
[null,"Ім’я 3",null,"адміністратор","адміністратор","адміністратор","адміністратор ","адміністратор","адміністратор","адміністратор",null,null,{"$f":"COUNTIF(Вівторок[[#This Row],[7:00:00]:[15:00:00]],\"*\")","v":7}]
[null,"Ім’я 4",null,"адміністратор","адміністратор","адміністратор","адміністратор ","адміністратор","адміністратор","адміністратор",null,null,{"$f":"COUNTIF(Вівторок[[#This Row],[7:00:00]:[15:00:00]],\"*\")","v":7}]
[null,"Ім’я 5",{"$nulls":9},"Лікарняне",{"$f":"COUNTIF(Вівторок[[#This Row],[7:00:00]:[15:00:00]],\"*\")","v":0}]

{"sheet":"Середа","index":2,"n_rows":10,"n_cols":13,"rows_kept":10,"merged":[[0,1,0,4],[1,2,1,4],[2,2,2,4]]}
[null,"Графік змін"]
[null,"На тиждень: ",{"$f":"Понеділок!C2","v":"Дата"}]
[null,"Назва відділу: ",{"$f":"Понеділок!C3","v":"Ім’я"}]
[]
[null,"СЕРЕДА","7:00:00","8:00:00","9:00:00","10:00:00","11:00:00","12:00:00","13:00:00","14:00:00","15:00:00","Лікарняний?","УСЬОГО"]
[null,"Ім’я 1","керівник","керівник","керівник","керівник","керівник","керівник","керівник","керівник","керівник",null,{"$f":"COUNTIF(Середа[[#This Row],[7:00:00]:[15:00:00]],\"*\")","v":9}]
[null,"Ім’я 2",null,"касир","касир","касир","касир",{"$nulls":5},{"$f":"COUNTIF(Середа[[#This Row],[7:00:00]:[15:00:00]],\"*\")","v":4}]
[null,"Ім’я 3",null,"адміністратор","адміністратор","адміністратор","адміністратор ","адміністратор","адміністратор","адміністратор",null,null,{"$f":"COUNTIF(Середа[[#This Row],[7:00:00]:[15:00:00]],\"*\")","v":7}]
[null,"Ім’я 4",null,"адміністратор","адміністратор","адміністратор","адміністратор ","адміністратор","адміністратор","адміністратор",null,null,{"$f":"COUNTIF(Середа[[#This Row],[7:00:00]:[15:00:00]],\"*\")","v":7}]
[null,"Ім’я 5",{"$nulls":9},"Лікарняне",{"$f":"COUNTIF(Середа[[#This Row],[7:00:00]:[15:00:00]],\"*\")","v":0}]

{"sheet":"Четвер","index":3,"n_rows":10,"n_cols":13,"rows_kept":10,"merged":[[0,1,0,4],[1,2,1,4],[2,2,2,4]]}
[null,"Графік змін"]
[null,"На тиждень: ",{"$f":"Понеділок!C2","v":"Дата"}]
[null,"Назва відділу: ",{"$f":"Понеділок!C3","v":"Ім’я"}]
[]
[null,"ЧЕТВЕР","7:00:00","8:00:00","9:00:00","10:00:00","11:00:00","12:00:00","13:00:00","14:00:00","15:00:00","Лікарняний?","УСЬОГО"]
[null,"Ім’я 1","керівник","керівник","керівник","керівник","керівник","керівник","керівник","керівник","керівник",null,{"$f":"COUNTIF(Четвер[[#This Row],[7:00:00]:[15:00:00]],\"*\")","v":9}]
[null,"Ім’я 2",null,"касир","касир","касир","касир",{"$nulls":5},{"$f":"COUNTIF(Четвер[[#This Row],[7:00:00]:[15:00:00]],\"*\")","v":4}]
[null,"Ім’я 3",null,"адміністратор","адміністратор","адміністратор","адміністратор ","адміністратор","адміністратор","адміністратор",null,null,{"$f":"COUNTIF(Четвер[[#This Row],[7:00:00]:[15:00:00]],\"*\")","v":7}]
[null,"Ім’я 4",null,"адміністратор","адміністратор","адміністратор","адміністратор ","адміністратор","адміністратор","адміністратор",null,null,{"$f":"COUNTIF(Четвер[[#This Row],[7:00:00]:[15:00:00]],\"*\")","v":7}]
[null,"Ім’я 5",{"$nulls":9},"Лікарняне",{"$f":"COUNTIF(Четвер[[#This Row],[7:00:00]:[15:00:00]],\"*\")","v":0}]

{"sheet":"П’ятниця","index":4,"n_rows":10,"n_cols":13,"rows_kept":10,"merged":[[0,1,0,4],[1,2,1,4],[2,2,2,4]]}
[null,"Графік змін"]
[null,"На тиждень: ",{"$f":"Понеділок!C2","v":"Дата"}]
[null,"Назва відділу: ",{"$f":"Понеділок!C3","v":"Ім’я"}]
[]
[null,"П’ЯТНИЦЯ","7:00:00","8:00:00","9:00:00","10:00:00","11:00:00","12:00:00","13:00:00","14:00:00","15:00:00","Лікарняний?","УСЬОГО"]
[null,"Ім’я 1","керівник","керівник","керівник","керівник","керівник","керівник","керівник","керівник","керівник",null,{"$f":"COUNTIF(П’ятниця[[#This Row],[7:00:00]:[15:00:00]],\"*\")","v":9}]
[null,"Ім’я 2",null,"касир","касир","касир","касир",{"$nulls":5},{"$f":"COUNTIF(П’ятниця[[#This Row],[7:00:00]:[15:00:00]],\"*\")","v":4}]
[null,"Ім’я 3",null,"адміністратор","адміністратор","адміністратор","адміністратор ","адміністратор","адміністратор","адміністратор",null,null,{"$f":"COUNTIF(П’ятниця[[#This Row],[7:00:00]:[15:00:00]],\"*\")","v":7}]
[null,"Ім’я 4",null,"адміністратор","адміністратор","адміністратор","адміністратор ","адміністратор","адміністратор","адміністратор",null,null,{"$f":"COUNTIF(П’ятниця[[#This Row],[7:00:00]:[15:00:00]],\"*\")","v":7}]
[null,"Ім’я 5",{"$nulls":9},"Лікарняне",{"$f":"COUNTIF(П’ятниця[[#This Row],[7:00:00]:[15:00:00]],\"*\")","v":0}]

{"sheet":"Субота","index":5,"n_rows":10,"n_cols":13,"rows_kept":10,"merged":[[0,1,0,4],[1,2,1,4],[2,2,2,4]]}
[null,"Графік змін"]
[null,"На тиждень: ",{"$f":"Понеділок!C2","v":"Дата"}]
[null,"Назва відділу: ",{"$f":"Понеділок!C3","v":"Ім’я"}]
[]
[null,"СУБОТА","7:00:00","8:00:00","9:00:00","10:00:00","11:00:00","12:00:00","13:00:00","14:00:00","15:00:00","Лікарняний?","УСЬОГО"]
[null,"Ім’я 1","керівник","керівник","керівник","керівник","керівник","керівник","керівник","керівник","керівник",null,{"$f":"COUNTIF(Субота[[#This Row],[7:00:00]:[15:00:00]],\"*\")","v":9}]
[null,"Ім’я 2",null,"касир","касир","касир","касир",{"$nulls":5},{"$f":"COUNTIF(Субота[[#This Row],[7:00:00]:[15:00:00]],\"*\")","v":4}]
[null,"Ім’я 3",null,"адміністратор","адміністратор","адміністратор","адміністратор ","адміністратор","адміністратор","адміністратор",null,null,{"$f":"COUNTIF(Субота[[#This Row],[7:00:00]:[15:00:00]],\"*\")","v":7}]
[null,"Ім’я 4",null,"адміністратор","адміністратор","адміністратор","адміністратор ","адміністратор","адміністратор","адміністратор",null,null,{"$f":"COUNTIF(Субота[[#This Row],[7:00:00]:[15:00:00]],\"*\")","v":7}]
[null,"Ім’я 5",{"$nulls":9},"Лікарняне",{"$f":"COUNTIF(Субота[[#This Row],[7:00:00]:[15:00:00]],\"*\")","v":0}]

{"sheet":"Неділя","index":6,"n_rows":10,"n_cols":13,"rows_kept":10,"merged":[[0,1,0,4],[1,2,1,4],[2,2,2,4]]}
[null,"Графік змін"]
[null,"На тиждень: ",{"$f":"Понеділок!C2","v":"Дата"}]
[null,"Назва відділу: ",{"$f":"Понеділок!C3","v":"Ім’я"}]
[]
[null,"НЕДІЛЯ","7:00:00","8:00:00","9:00:00","10:00:00","11:00:00","12:00:00","13:00:00","14:00:00","15:00:00","Лікарняний?","УСЬОГО"]
[null,"Ім’я 1","керівник","керівник","керівник","керівник","керівник","керівник","керівник","керівник","керівник",null,{"$f":"COUNTIF(Неділя[[#This Row],[7:00:00]:[15:00:00]],\"*\")","v":9}]
[null,"Ім’я 2",null,"касир","касир","касир","касир",{"$nulls":5},{"$f":"COUNTIF(Неділя[[#This Row],[7:00:00]:[15:00:00]],\"*\")","v":4}]
[null,"Ім’я 3",null,"адміністратор","адміністратор","адміністратор","адміністратор ","адміністратор","адміністратор","адміністратор",null,null,{"$f":"COUNTIF(Неділя[[#This Row],[7:00:00]:[15:00:00]],\"*\")","v":7}]
[null,"Ім’я 4",null,"адміністратор","адміністратор","адміністратор","адміністратор ","адміністратор","адміністратор","адміністратор",null,null,{"$f":"COUNTIF(Неділя[[#This Row],[7:00:00]:[15:00:00]],\"*\")","v":7}]
[null,"Ім’я 5",{"$nulls":9},"Лікарняне",{"$f":"COUNTIF(Неділя[[#This Row],[7:00:00]:[15:00:00]],\"*\")","v":0}]